fUST/lending_fUST_20251111
["ID","MTS","AMOUNT","RATE_DAILY","PERIOD"]
[393617352,1762856762011,9211.195332,0.00016292,2]
[393617353,1762856762038,10000.01,0.00016292,2]
[393617354,1762856762067,10000.01,0.00016292,2]
[393617355,1762856762094,10000.01,0.00016292,2]
[393617356,1762856762120,10000.01,0.00016292,2]
[393617357,1762856762146,10000.01,0.00016292,2]
[393617358,1762856762172,10000.01,0.00016292,2]
[393617359,1762856762197,10000.01,0.00016292,2]
[393617360,1762856769148,-10000.01,0.00016292,2]
[393617361,1762856769410,-10000.01,0.00016292,2]
[393617362,1762856769532,-10000.01,0.00016292,2]
[393617363,1762856769647,-10000.01,0.00016292,2]
[393617364,1762856769779,-10000.01,0.00016292,2]
[393617365,1762856769911,-10000.01,0.00016292,2]
[393617366,1762856772354,-10000.01,0.00016292,2]
[393617367,1762856772595,-10000.01,0.00016292,2]
[393617368,1762856800082,-221.62916145,0.00016291,2]
[393617369,1762856800105,-444.39829898,0.00016291,2]
[393617370,1762856800131,-500.0,0.00016291,2]
[393617371,1762856800153,-340.74665048,0.00016291,2]
[393617372,1762856800175,-350.0,0.00016291,2]
[393617373,1762856800199,-500.0,0.00016291,2]
[393617374,1762856800221,-520.15979204,0.00016291,2]
[393617375,1762856800244,-5009.52689682,0.00016292,2]
[393617377,1762856917744,-211.0,0.00016135,2]
[393617601,1762857037970,-211.0,0.00016235,2]
[393617603,1762857037981,-223.68561342,0.00016241,2]
[393617605,1762857037991,-211.0,0.00016247,2]
[393617607,1762857038000,-1294.6138049,0.00016257,2]
[393617610,1762857038024,-867.35192893,0.00016257,2]
[393617612,1762857038034,-300.0,0.00016291,2]
[393617615,1762857038056,-1023.2381081,0.00016291,2]
[393617820,1762857040235,-68.7618919,0.00016291,2]
[393617822,1762857040245,-2146.82611433,0.00016292,2]
[393617824,1762857040256,-258.22,0.00016292,2]
[393617826,1762857040267,-302.38100002,0.00016292,2]
[393618152,1762857043438,-7732.45929748,0.00016292,2]
[393618162,1762857043518,-1194.1390222,0.00016292,2]
[393618164,1762857043530,-438.91789886,0.00016292,2]
[393618167,1762857043551,-70.4869,0.00016292,2]
[393618489,1762857046715,-183262.4391085,0.00016292,2]
[393619655,1762857155655,218.571703,0.0001826,3]
[393619714,1762857753040,181.102269,0.0001826,3]
[393619716,1762857790521,2248.36196207,0.00016011,2]
[393619718,1762857856376,9954.15750494,0.00032877,120]
[393619731,1762858110225,10000.01,0.00016192,2]
[393619732,1762858110264,10000.01,0.00016192,2]
[393619733,1762858110292,10000.01,0.00016192,2]
[393619734,1762858110317,10000.01,0.00016192,2]
[393619735,1762858110341,10000.01,0.00016192,2]
[393619736,1762858110365,10000.01,0.00016192,2]
[393619737,1762858110392,10000.01,0.00016192,2]
[393619738,1762858110416,10000.01,0.00016192,2]
[393619739,1762858110439,10000.01,0.00016192,2]
[393619740,1762858110462,10000.01,0.00016192,2]
[393619741,1762858114379,-202.34987633,0.00016191,2]
[393619742,1762858114410,-500.0,0.00016191,2]
[393619743,1762858114444,-168.90664356,0.00016191,2]
[393619744,1762858114475,-275.27734936,0.00016191,2]
[393619745,1762858117244,-5458.58029943,0.00016192,2]
[393619746,1762858117465,-10000.01,0.00016192,2]
[393619747,1762858117608,-10000.01,0.00016192,2]
[393619748,1762858117861,-10000.01,0.00016192,2]
[393619749,1762858117875,-10000.01,0.00016192,2]
[393619750,1762858117989,-10000.01,0.00016192,2]
[393619751,1762858118115,-10000.01,0.00016192,2]
[393619752,1762858118258,-10000.01,0.00016192,2]
[393619753,1762858118436,-10000.01,0.00016192,2]
[393619754,1762858118692,-10000.01,0.00016192,2]
[393619755,1762858120344,-10000.01,0.00016192,2]
[393619756,1762858120468,-10000.01,0.00016192,2]
[393619757,1762858128131,45671.48986107,0.00032877,120]
[393619821,1762858238216,-169.08391841,0.00016022,2]
[393619823,1762858238226,-300.0,0.00016191,2]
[393619825,1762858238235,-8935.24657625,0.00016192,2]
[393619830,1762858238268,-734.27899319,0.00016192,2]
[393620620,1762858246535,-563.791214,0.00016192,2]
[393620632,1762858355045,205.249238,0.0001826,3]
[393620633,1762858390251,516.92,0.0001511,2]
[393620673,1762858956565,170.063654,0.0001826,3]
[393620687,1762859249082,-210.20102834,0.00015471,2]
[393620688,1762859249104,-0.40103215,0.00015668,2]
[393620702,1762859355497,800.570755,0.00013699,2]
[393620750,1762859432410,-218.810869,0.00015668,2]
[393620752,1762859432420,-743.84557159,0.00016092,2]
[393620814,1762859438316,-380.89502363,0.00016092,2]
[393620817,1762859438329,-717.12731951,0.00016092,2]
[393620819,1762859438341,-323.72488105,0.00016092,2]
[393620821,1762859438351,-890.81402104,0.00016107,2]
[393620823,1762859438363,-1357.54794103,0.00016107,2]
[393620825,1762859438373,-426.10034195,0.00016173,2]
[393620827,1762859438384,-353.23297211,0.00016173,2]
[393620829,1762859438396,-146.76702789,0.00016173,2]
[393620831,1762859438406,-300.0,0.00016191,2]
[393620833,1762859438415,-1022.27187355,0.00016192,2]
[393620835,1762859438427,-749.22306325,0.00016192,2]
[393621044,1762859440627,-40971.08073413,0.00016192,2]
[393621046,1762859440638,-50364.99999999,0.00016192,2]
[393621584,1762859554321,192.738808,0.0001826,3]
[393621585,1762860157149,191.713062,0.0001826,3]
[393621586,1762860233774,161.9324311,0.00015093,2]
[393621591,1762860373339,-2248.36196207,0.0001592,2]
[393621592,1762860373370,-500.0,0.00016073,2]
[393621593,1762860373403,-1200.0,0.00016086,2]
[393621594,1762860373435,-300.0,0.00016086,2]
[393621595,1762860373466,-630.0,0.00016087,2]
[393621596,1762860373714,-500.0,0.00016087,2]
[393621597,1762860373747,-500.0,0.00016087,2]
[393621598,1762860373779,-500.0,0.00016087,2]
[393621599,1762860373814,-500.0,0.00016087,2]
[393621600,1762860373847,-500.0,0.00016087,2]
[393621601,1762860373878,-500.0,0.00016087,2]
[393621602,1762860373911,-500.0,0.00016087,2]
[393621603,1762860373943,-500.0,0.00016087,2]
[393621604,1762860373977,-500.0,0.00016087,2]
[393621605,1762860374009,-500.0,0.00016087,2]
[393621606,1762860374148,-500.0,0.00016087,2]
[393621607,1762860374181,-500.0,0.00016087,2]
[393621608,1762860374213,-500.0,0.00016087,2]
[393621609,1762860374244,-500.0,0.00016087,2]
[393621610,1762860374275,-500.0,0.00016087,2]
[393621611,1762860374307,-500.0,0.00016087,2]
[393621612,1762860374341,-500.0,0.00016087,2]
[393621613,1762860374372,-354.65894118,0.00016087,2]
[393621614,1762860374403,-500.0,0.00016087,2]
[393621615,1762860374434,-500.0,0.00016087,2]
[393621616,1762860374558,-500.0,0.00016087,2]
[393621617,1762860374588,-500.0,0.00016087,2]
[393621618,1762860374621,-500.0,0.00016087,2]
[393621619,1762860374657,-500.0,0.00016087,2]
[393621620,1762860374689,-230.05404758,0.00016088,2]
[393621621,1762860374823,-208.75150018,0.00016088,2]
[393621622,1762860375187,-5111.38691224,0.00016088,2]
[393621623,1762860375205,-9834.04987423,0.00016088,2]
[393621624,1762860375214,-165.96012577,0.00016092,2]
[393621625,1762860375232,-10000.01,0.00016092,2]
[393621626,1762860375250,-10000.01,0.00016092,2]
[393621627,1762860375264,-10000.01,0.00016092,2]
[393621628,1762860375278,-10000.01,0.00016092,2]
[393621629,1762860375293,-10000.01,0.00016092,2]
[393621630,1762860376153,-10000.01,0.00016092,2]
[393621631,1762860376281,-10000.01,0.00016092,2]
[393621632,1762860379450,-10000.01,0.00016092,2]
[393621633,1762860379657,-10000.01,0.00016092,2]
[393621634,1762860382391,-10000.01,0.00016092,2]
[393621635,1762860385527,-10000.01,0.00016092,2]
[393621636,1762860385645,-10000.01,0.00016092,2]
[393621637,1762860385787,-10000.01,0.00016092,2]
[393621652,1762860599605,-401.51503218,0.00015772,2]
[393621653,1762860601062,-177.67458026,0.00015772,2]
[393621654,1762860606823,-291.12672364,0.00015772,2]
[393621655,1762860609514,-173.38392685,0.00015772,2]
[393621656,1762860611771,-193.57893469,0.00015772,2]
[393621657,1762860614323,-300.69357695,0.00015772,2]
[393621658,1762860618256,-190.7217626,0.00015772,2]
[393621659,1762860620391,-187.22648447,0.00015772,2]
[393621660,1762860621941,-351.26151069,0.00015772,2]
[393621661,1762860623954,-236.58350445,0.00015772,2]
[393621662,1762860625486,-151.29382709,0.00015772,2]
[393621663,1762860627598,-386.24495282,0.00015772,2]
[393621664,1762860631438,-238.32672671,0.00015772,2]
[393621696,1762860632741,-1318.34384153,0.00015772,2]
[393621697,1762860632751,-226.26713836,0.0001596,2]
[393621698,1762860632761,-300.0,0.00015989,2]
[393621699,1762860632772,-522.0,0.00015989,2]
[393621700,1762860632781,-4009.19544521,0.0001599,2]
[393621701,1762860632793,-912.404044,0.0001599,2]
[393621702,1762860632814,-643.77140468,0.0001599,2]
[393621703,1762860632825,-2104.49736025,0.0001599,2]
[393621704,1762860632835,-500.0,0.00016073,2]
[393621705,1762860632844,-512.25097809,0.00016073,2]
[393621706,1762860632853,-425.24690506,0.00016073,2]
[393621707,1762860632863,-500.0,0.00016073,2]
[393621708,1762860632873,-500.0,0.00016073,2]
[393621709,1762860632883,-501.94832767,0.00016073,2]
[393621710,1762860632893,-500.0,0.00016073,2]
[393621711,1762860632903,-500.0,0.00016073,2]
[393621712,1762860632913,-502.78883917,0.00016073,2]
[393621713,1762860632923,-500.0,0.00016073,2]
[393621714,1762860632933,-500.0,0.00016073,2]
[393621715,1762860632943,-507.71057593,0.00016073,2]
[393621716,1762860632952,-500.0,0.00016073,2]
[393621717,1762860632962,-500.0,0.00016091,2]
[393621718,1762860632973,-650.51766013,0.00016091,2]
[393621719,1762860632983,-646833.90987423,0.00016092,2]
[393621720,1762860632992,-500.0,0.00016192,2]
[393621721,1762860633002,-210.95959994,0.00016192,2]
[393621722,1762860633014,-566.95385667,0.00016205,2]
[393621723,1762860633023,-256.4395532,0.00016237,2]
[393621724,1762860633033,-192.1389483,0.00016237,2]
[393621725,1762860633043,-1297.0,0.00016257,2]
[393621726,1762860633053,-856.277135,0.00016345,2]
[393621727,1762860633062,-211.0,0.00016357,2]
[393621728,1762860633072,-211.0,0.00016368,2]
[393621729,1762860633082,-500.0,0.00016438,2]
[393621730,1762860633093,-500.0,0.00016438,2]
[393621731,1762860633103,-500.0,0.00016438,2]
[393621732,1762860633116,-500.0,0.00016438,2]
[393621733,1762860633125,-500.0,0.00016438,2]
[393621734,1762860633135,-650.0,0.00016438,2]
[393621735,1762860633145,-500.0,0.00016438,2]
[393621736,1762860633155,-500.0,0.00016438,2]
[393621737,1762860633165,-509.85093457,0.00016438,2]
[393621738,1762860633175,-500.0,0.00016438,2]
[393621739,1762860633185,-500.0,0.00016438,2]
[393621740,1762860633197,-500.0,0.00016438,2]
[393621741,1762860633207,-500.0,0.00016438,2]
[393621742,1762860633217,-500.0,0.00016438,2]
[393621743,1762860633226,-300.0,0.00016438,2]
[393621744,1762860633236,-211.0,0.0001649,2]
[393621745,1762860633246,-211.0,0.00016518,2]
[393621746,1762860633255,-211.0,0.00016534,2]
[393621747,1762860633265,-2196.7979168,0.00016561,2]
[393621748,1762860633275,-413.0,0.00016572,2]
[393621749,1762860633284,-1000.0,0.00016621,2]
[393621750,1762860633294,-509.14947588,0.00016621,2]
[393621751,1762860633304,-1000.0,0.00016621,2]
[393621752,1762860633314,-504.75289529,0.00016621,2]
[393621753,1762860633324,-488.15945781,0.00016621,2]
[393621754,1762860633334,-1000.0,0.00016621,2]
[393621755,1762860633344,-1015.62232191,0.00016621,2]
[393621756,1762860633354,-1000.0,0.00016621,2]
[393621757,1762860633364,-211.0,0.00016662,2]
[393621758,1762860633374,-211.0,0.00016745,2]
[393621759,1762860633383,-212.742118,0.00016807,2]
[393621760,1762860633392,-211.0,0.00016821,2]
[393621761,1762860633402,-211.0,0.00016832,2]
[393621762,1762860633412,-268.0,0.00016905,2]
[393621763,1762860633421,-211.0,0.00016933,2]
[393621764,1762860633431,-211.0,0.00016943,2]
[393621765,1762860633440,-211.0,0.0001699,2]
[393621766,1762860633449,-211.0,0.00016994,2]
[393621767,1762860633462,-211.0,0.00017131,2]
[393621768,1762860633471,-268.0,0.0001714,2]
[393621769,1762860633481,-211.0,0.0001716,2]
[393621770,1762860633490,-800.0,0.00017164,2]
[393621771,1762860633499,-533.2722871,0.00017168,2]
[393621772,1762860633508,-1500.0,0.00017168,2]
[393621773,1762860633517,-500.0,0.00017208,2]
[393621774,1762860633526,-500.0,0.00017208,2]
[393621775,1762860633535,-211.0,0.00017209,2]
[393621776,1762860633545,-500.0,0.00017263,2]
[393621777,1762860633554,-500.0,0.00017263,2]
[393621778,1762860633563,-500.0,0.00017318,2]
[393621779,1762860633572,-500.0,0.00017318,2]
[393621780,1762860633581,-500.0,0.00017372,2]
[393621781,1762860633590,-268.0,0.00017377,2]
[393621782,1762860633600,-211.0,0.00017383,2]
[393621783,1762860633610,-211.0,0.00017409,2]
[393621784,1762860633619,-500.0,0.00017427,2]
[393621785,1762860633628,-191.713062,0.00017455,2]
[393621786,1762860633637,-500.0,0.00017482,2]
[393621787,1762860633647,-420.0,0.00017482,2]
[393621788,1762860633656,-211.0,0.00017495,2]
[393621789,1762860633665,-500.0,0.00017537,2]
[393621790,1762860633674,-211.0,0.00017556,2]
[393621791,1762860633684,-211.0,0.00017569,2]
[393621792,1762860633693,-500.0,0.00017592,2]
[393621793,1762860633702,-500.0,0.00017646,2]
[393621794,1762860633712,-162.82399718,0.00017691,2]
[393621795,1762860633721,-211.0,0.00017699,2]
[393621796,1762860633731,-500.0,0.00017701,2]
[393621797,1762860633740,-2000.0,0.00017716,2]
[393621798,1762860633749,-500.0,0.00017756,2]
[393621799,1762860633759,-500.0,0.00017811,2]
[393621800,1762860633768,-500.0,0.00017866,2]
[393621801,1762860633777,-500.0,0.0001792,2]
[393621802,1762860633786,-266.99522326,0.0001796,2]
[393621803,1762860633795,-500.0,0.00017975,2]
[393621804,1762860633804,-500.0,0.0001803,2]
[393621805,1762860633814,-299.98,0.00018249,2]
[393621806,1762860633823,-800.0,0.0001826,2]
[393621807,1762860633833,-2500.0,0.00018264,2]
[393621808,1762860633842,-332.0,0.00018306,2]
[393621809,1762860633852,-332.0,0.00018306,2]
[393621810,1762860633862,-332.0,0.00018306,2]
[393621811,1762860633872,-332.0,0.00018306,2]
[393621812,1762860633882,-276.37282029,0.00018306,2]
[393621813,1762860633892,-751.2185028,0.00018673,2]
[393621814,1762860633901,-1459.1821932,0.00018812,2]
[393621815,1762860633911,-323.61710192,0.00018888,2]
[393621816,1762860633920,-302.72757545,0.000189,2]
[393621817,1762860633930,-160.0,0.000189,2]
[393621818,1762860633939,-1000.0,0.00019,3]
[393621819,1762860633949,-191.713062,0.0001906,2]
[393621820,1762860633958,-176.36526074,0.00019068,2]
[393621821,1762860633967,-302.72757545,0.00019089,2]
[393621822,1762860633976,-587.0,0.00019113,2]
[393621823,1762860633986,-5000.0,0.00019178,2]
[393621824,1762860633995,-151.0,0.00019178,2]
[393621825,1762860634005,-151.000003,0.00019178,2]
[393621826,1762860634014,-151.0,0.00019178,2]
[393621827,1762860634023,-151.0,0.00019178,2]
[393621828,1762860634032,-191.713062,0.00019217,3]
[393621829,1762860634041,-302.72757545,0.00019278,2]
[393621830,1762860634051,-800.0,0.00019356,2]
[393621831,1762860634060,-260.0,0.00019448,2]
[393621832,1762860634069,-302.72757545,0.00019467,2]
[393621833,1762860634078,-413.0,0.00019572,2]
[393621834,1762860634088,-191.713062,0.000196,4]
[393621835,1762860634098,-174.49790229,0.00019656,2]
[393621836,1762860634108,-5089.0,0.00019767,10]
[393621837,1762860634120,-307.72330817,0.0001996,2]
[393621838,1762860634130,-503.21993374,0.00019973,2]
[393621839,1762860634139,-500.0,0.00019973,2]
[393621840,1762860634148,-500.0,0.00019973,2]
[393621841,1762860634158,-506.78909919,0.00019973,2]
[393621842,1762860634167,-503.89851518,0.00019973,2]
[393621843,1762860634176,-501.60334789,0.00019973,2]
[393621844,1762860634185,-160.99933712,0.00019973,2]
[393621845,1762860634195,-501.28104387,0.00019973,2]
[393621846,1762860634204,-500.0,0.00019973,2]
[393621847,1762860634213,-500.3531463,0.00019973,2]
[393621848,1762860634223,-571.75842056,0.00019973,2]
[393621849,1762860634232,-500.0,0.00019973,2]
[393621850,1762860634241,-500.0,0.00019973,2]
[393621851,1762860634250,-500.0,0.00019973,2]
[393621852,1762860634260,-500.0,0.00019973,2]
[393621853,1762860634269,-521.66578645,0.00019973,2]
[393621854,1762860634278,-625.06269808,0.00019973,2]
[393621855,1762860634288,-500.0,0.00019973,2]
[393621856,1762860634297,-500.0,0.00019973,2]
[393621857,1762860634306,-500.0,0.00019973,2]
[393621858,1762860634315,-500.0,0.00019973,2]
[393621859,1762860634325,-501.36127919,0.00019973,2]
[393621860,1762860634334,-500.0,0.00019973,2]
[393621861,1762860634344,-632.74519464,0.00019973,2]
[393621862,1762860634354,-503.37299615,0.00019973,2]
[393621863,1762860634363,-503.12642364,0.00019973,2]
[393621864,1762860634372,-500.0,0.00019973,2]
[393621865,1762860634382,-503.94337167,0.00019973,2]
[393621866,1762860634391,-500.0,0.00019973,2]
[393621867,1762860634401,-504.66920656,0.00019973,2]
[393621868,1762860634411,-151.0,0.00019973,7]
[393621869,1762860634420,-151.0,0.00019973,7]
[393621870,1762860634430,-151.0,0.00019973,7]
[393621871,1762860634440,-360.0,0.00019996,2]
[393621872,1762860634449,-138918.91,0.0002,2]
[393621873,1762860634458,-429.15965474,0.0002,2]
[393621874,1762860634467,-1000.0,0.0002,20]
[393621875,1762860634476,-100000.0,0.0002,7]
[393621876,1762860634486,-59392.0,0.0002,7]
[393621877,1762860634597,-347.10097837,0.0002,2]
[393621878,1762860634607,-151.0,0.0002,7]
[393621879,1762860634616,-151.0,0.0002,7]
[393621880,1762860634626,-167.233434,0.0002,7]
[393621881,1762860634635,-151.0,0.0002,7]
[393621882,1762860634645,-151.0,0.0002,7]
[393621883,1762860634654,-151.0,0.0002,7]
[393621884,1762860634664,-151.0,0.0002,7]
[393621885,1762860634673,-151.0,0.0002,7]
[393621886,1762860634683,-151.0,0.0002,7]
[393621887,1762860634693,-200.90463045,0.0002,7]
[393621888,1762860634703,-191.713062,0.000201,4]
[393621889,1762860634712,-191.713062,0.00020174,3]
[393621890,1762860634722,-800.570755,0.00020187,2]
[393621891,1762860634732,-800.0,0.00020452,2]
[393621892,1762860634741,-1000.0,0.00020521,2]
[393621893,1762860634751,-509.42067237,0.00020521,2]
[393621894,1762860634761,-512.37417918,0.00020521,2]
[393621895,1762860634770,-378.76028227,0.00020521,2]
[393621896,1762860634780,-1033.12248485,0.00020521,2]
[393621897,1762860634789,-1011.25536302,0.00020521,2]
[393621898,1762860634799,-1000.0,0.00020521,2]
[393621899,1762860634808,-475.69000955,0.00020521,2]
[393621900,1762860634819,-503.73757775,0.00020521,2]
[393621901,1762860634828,-1000.0,0.00020521,2]
[393621902,1762860634838,-1000.0,0.00020521,2]
[393621903,1762860634848,-1000.0,0.00020521,2]
[393621904,1762860634858,-1000.0,0.00020521,2]
[393621905,1762860634867,-151.0,0.00020521,7]
[393621906,1762860634877,-460.0,0.00020544,2]
[393621907,1762860634886,-500.0,0.00020547,2]
[393621908,1762860634896,-517.96263968,0.00020547,2]
[393621909,1762860634905,-191.713062,0.000206,4]
[393621910,1762860634915,-191.713062,0.00020665,2]
[393621911,1762860634924,-751.2185028,0.00020707,2]
[393621912,1762860634934,-823.0,0.00020897,2]
[393621913,1762860634944,-1000.0,0.00021,21]
[393621914,1762860634953,-150.0,0.00021,2]
[393621915,1762860634962,-151.0,0.00021068,7]
[393621917,1762860634971,-151.0,0.00021068,7]
[393621918,1762860634980,-1500.0,0.00021068,2]
[393621919,1762860634990,-1629.94692748,0.00021068,2]
[393621920,1762860634999,-1500.0,0.00021068,2]
[393621921,1762860635008,-1500.0,0.00021068,2]
[393621922,1762860635018,-1005.20972824,0.00021068,2]
[393621923,1762860635027,-730.83075294,0.00021068,2]
[393621924,1762860635036,-560.0,0.00021092,2]
[393621925,1762860635046,-191.713062,0.000211,4]
[393621926,1762860635056,-191.0907821,0.00021129,2]
[393621927,1762860635065,-191.0907821,0.00021129,2]
[393621928,1762860635075,-191.0907821,0.00021129,2]
[393621929,1762860635085,-380.8134796,0.00021129,2]
[393621930,1762860635096,-191.0907821,0.00021129,2]
[393621931,1762860635105,-191.0907821,0.00021129,2]
[393621932,1762860635119,-191.0907821,0.00021129,2]
[393621933,1762860635129,-191.0907821,0.00021129,2]
[393621934,1762860635139,-191.0907821,0.00021129,2]
[393621935,1762860635148,-191.0907821,0.00021129,2]
[393621936,1762860635158,-414.7611843,0.00021129,2]
[393621937,1762860635167,-191.0907821,0.00021129,2]
[393621938,1762860635177,-191.713062,0.00021132,3]
[393621939,1762860635188,-160.0,0.00021298,2]
[393621940,1762860635197,-160.0,0.00021298,2]
[393621941,1762860635207,-600.0,0.00021444,2]
[393621942,1762860635216,-191.0907821,0.00021458,2]
[393621943,1762860635226,-191.0907821,0.00021458,2]
[393621944,1762860635235,-191.0907821,0.00021458,2]
[393621945,1762860635245,-191.0907821,0.00021458,2]
[393621946,1762860635255,-191.0907821,0.00021458,2]
[393621947,1762860635265,-193.9226306,0.00021458,2]
[393621948,1762860635274,-191.0907821,0.00021458,2]
[393621949,1762860635283,-191.0907821,0.00021458,2]
[393621950,1762860635292,-191.0907821,0.00021458,2]
[393621951,1762860635303,-191.0907821,0.00021458,2]
[393621952,1762860635313,-382.1815642,0.00021458,2]
[393621953,1762860635322,-191.0907821,0.00021458,2]
[393621954,1762860635331,-191.0907821,0.00021458,2]
[393621955,1762860635341,-191.0907821,0.00021458,2]
[393621956,1762860635352,-191.0907821,0.00021458,2]
[393621957,1762860635362,-800.0,0.00021548,2]
[393621958,1762860635371,-191.713062,0.000216,4]
[393621959,1762860635380,-153.479313,0.000216,4]
[393621960,1762860635390,-2000.0,0.00021616,2]
[393621961,1762860635400,-2000.0,0.00021616,2]
[393621962,1762860635410,-2000.0,0.00021616,2]
[393621963,1762860635419,-678.55319527,0.0002164,2]
[393621964,1762860635428,-600.0,0.00021667,2]
[393621965,1762860635438,-1111.35906678,0.0002189,2]
[393621966,1762860635447,-153.0,0.00021918,2]
[393621967,1762860635456,-153.0,0.00021918,2]
[393621968,1762860635466,-500.0,0.00021918,2]
[393621969,1762860635475,-153.0,0.00021918,2]
[393621970,1762860635484,-153.0,0.00021918,2]
[393621971,1762860635494,-153.0,0.00021918,2]
[393621972,1762860635503,-500.0,0.00021918,2]
[393621973,1762860635513,-157.05724253,0.00021918,2]
[393621974,1762860635523,-344.15536342,0.00021918,2]
[393621975,1762860635532,-348.45139307,0.0002196,2]
[393621976,1762860635543,-753.60501749,0.00022,3]
[393621977,1762860635552,-191.713062,0.00022,7]
[393621978,1762860635562,-191.713062,0.00022,7]
[393621979,1762860635571,-191.713062,0.00022,7]
[393621980,1762860635581,-191.713062,0.00022,7]
[393621981,1762860635590,-191.713062,0.00022,7]
[393621982,1762860635599,-191.713062,0.00022,5]
[393621983,1762860635609,-191.713062,0.00022,5]
[393621984,1762860635618,-191.713062,0.00022,5]
[393621985,1762860635629,-191.713062,0.00022,5]
[393621986,1762860635640,-153.479313,0.00022,7]
[393621987,1762860635649,-191.713062,0.00022,5]
[393621988,1762860635664,-153.479313,0.00022,5]
[393621989,1762860635674,-191.713062,0.00022089,3]
[393621990,1762860635684,-153.479313,0.00022089,3]
[393621991,1762860635694,-54035.62,0.000221,7]
[393621992,1762860635704,-151.0,0.000221,3]
[393621993,1762860635714,-268.955301,0.000221,3]
[393621994,1762860635724,-238.500044,0.000221,7]
[393621995,1762860635735,-1340.58962076,0.00022164,2]
[393621996,1762860635744,-2500.0,0.00022164,2]
[393621997,1762860635754,-2500.0,0.00022164,2]
[393621998,1762860635764,-2500.0,0.00022164,2]
[393621999,1762860635774,-191.713062,0.0002227,2]
[393622000,1762860635784,-191.0907821,0.0002228,2]
[393622001,1762860635794,-191.0907821,0.0002228,2]
[393622002,1762860635804,-191.0907821,0.0002228,2]
[393622003,1762860635814,-191.0907821,0.0002228,2]
[393622004,1762860635823,-191.0907821,0.0002228,2]
[393622005,1762860635831,-191.0907821,0.0002228,2]
[393622006,1762860635840,-191.0907821,0.0002228,2]
[393622007,1762860635853,-191.0907821,0.0002228,2]
[393622008,1762860635863,-191.0907821,0.0002228,2]
[393622009,1762860635873,-191.0907821,0.0002228,2]
[393622010,1762860635883,-191.0907821,0.0002228,2]
[393622011,1762860635893,-191.0907821,0.0002228,2]
[393622012,1762860635903,-191.0907821,0.0002228,2]
[393622013,1762860635913,-191.0907821,0.0002228,2]
[393622014,1762860635923,-191.0907821,0.0002228,2]
[393622015,1762860635933,-2313.22681686,0.00022337,2]
[393622016,1762860635943,-14377.3,0.00022337,2]
[393622017,1762860635952,-14377.3,0.00022337,2]
[393622018,1762860635963,-14377.3,0.00022337,2]
[393622019,1762860635972,-14377.3,0.00022337,2]
[393622020,1762860635981,-14377.3,0.00022337,2]
[393622021,1762860635991,-7439.41851811,0.00022337,2]
[393622048,1762860638514,-419.539,0.00016572,2]
[393622050,1762860638525,-413.0,0.00019572,2]
[393622052,1762860638535,-151.0,0.00020548,3]
[393622054,1762860638544,-151.0,0.00020548,3]
[393622056,1762860638554,-151.0,0.00020548,3]
[393622058,1762860638564,-151.0,0.00020548,3]
[393622060,1762860638574,-151.0,0.00020548,3]
[393622062,1762860638583,-6937.88148189,0.00022337,2]
[393622064,1762860638592,-14377.3,0.00022337,2]
[393622066,1762860638603,-5379.30004957,0.00022337,2]
[393622287,1762860640819,-3e-08,0.00016572,2]
[393622423,1762860643857,-594.9520577,0.00015772,2]
[393622424,1762860643867,-747.21275676,0.00016572,2]
[393622443,1762861146635,2190.04671391,0.000125,2]